[Event "GER-chW Blitz 2019"]
[Site "Magdeburg"]
[Date "2019.05.25"]
[Round "15.2"]
[White "Fuchs, Judith"]
[Black "Silz, Elisa"]
[Result "1-0"]
[ECO "A45"]
[WhiteElo "2218"]
[BlackElo "1977"]
[Annotator "NA"]
[PlyCount "133"]
[EventDate "2019.05.25"]
[EventType "tourn"]
[EventCountry "GER"]
[SourceTitle "playchess.com"]
[Source "ChessBase"]
[SourceQuality "1"]
[TimeControl "180+2"]

1. d4 {[%emt 0:00:00]} Nf6 {[%emt 0:00:00]} 2. Bf4 {[%emt 0:00:00]} g6 {[%emt 0:00:00]} 3. Nc3 {[%emt 0:00:01]} Bg7 {[%emt 0:00:00]} 4. e4 {[%emt 0:00:01]} d6 {[%emt 0:00:00]} 5. Qd2 {[%emt 0:00:02]} O-O {[%emt 0:00:02]} 6. Bh6 {[%emt 0:00:01]} e5 {[%emt 0:00:02]} 7. Bxg7 {[%emt 0:00:10]} Kxg7 {[%emt 0:00:01]} 8. Nf3 {[%emt 0:00:01]} exd4 {[%emt 0:00:04]} 9. Nxd4 {[%emt 0:00:01]} Re8 {[%emt 0:00:02]} 10. f3 {[%emt 0:00:03]} d5 {[%emt 0:00:02]} 11. O-O-O {[%emt 0:00:06]} c6 {[%emt 0:00:06]} 12. exd5 {[%emt 0:00:08]} cxd5 {[%emt 0:00:03]} 13. h4 {[%emt 0:00:13]} h5 {[%emt 0:00:08]} 14. Bb5 {[%emt 0:00:19]} Bd7 {[%emt 0:00:06]} 15. Be2 {[%emt 0:00:11]} Nc6 {[%emt 0:00:04]} 16. Kb1 {[%emt 0:00:04]} Qb6 {[%emt 0:00:11]} 17. Nb3 {[%emt 0:00:12]} Be6 {[%emt 0:00:08]} 18. Na4 {[%emt 0:00:12]} Qb4 {[%emt 0:00:08]} 19. Nac5 {[%emt 0:00:06]} Qxd2 {[%emt 0:00:04]} 20. Rxd2 {[%emt 0:00:01]} b6 {[%emt 0:00:05]} 21. Nd3 {[%emt 0:00:08]} Rac8 {[%emt 0:00:11]} 22. Nf4 {[%emt 0:00:02]} Bf5 {[%emt 0:00:07]} 23. Ba6 {[%emt 0:00:13]} Rc7 {[%emt 0:00:08]} 24. Bb5 {[%emt 0:00:05]} Re3 {[%emt 0:00:13]} 25. Bxc6 {[%emt 0:00:22]} Rxc6 {[%emt 0:00:01]} 26. Nd4 {[%emt 0:00:01]} Rc5 {[%emt 0:00:16]} 27. Nxf5+ {[%emt 0:00:02]} gxf5 {[%emt 0:00:01]} 28. Rhd1 {[%emt 0:00:03]} Rc4 {[%emt 0:00:16]} 29. Nxd5 {[%emt 0:00:14]} Nxd5 {[%emt 0:00:01]} 30. Rxd5 {[%emt 0:00:01]} Re2 {[%emt 0:00:01]} 31. c3 {[%emt 0:00:04]} Rxg2 {[%emt 0:00:06]} 32. Rxf5 {[%emt 0:00:09]} Rxh4 {[%emt 0:00:04]} 33. a4 {[%emt 0:00:07]} Rhh2 {[%emt 0:00:01]} 34. Rb5 {[%emt 0:00:01]} h4 {[%emt 0:00:03]} 35. Rd4 {[%emt 0:00:09]} h3 {[%emt 0:00:02]} 36. Rh4 {[%emt 0:00:14]} Rh1+ 37. Ka2 h2 {[%emt 0:00:03]} 38. Rbh5 {[%emt 0:00:05]} a5 {[%emt 0:00:11]} 39. Rh7+ {[%emt 0:00:10]} Kf6 {[%emt 0:00:02]} 40. R7h6+ {[%emt 0:00:01]} Kg7 {[%emt 0:00:06]} 41. Rh7+ {[%emt 0:00:03]} Kf6 {[%emt 0:00:01]} 42. R7h6+ {[%emt 0:00:00]} Kg7 {[%emt 0:00:01]} 43. R6h5 {[%emt 0:00:01]} Rf2 {[%emt 0:00:09]} 44. Rh7+ {[%emt 0:00:05]} Kf6 {[%emt 0:00:01]} 45. R7h6+ {[%emt 0:00:01]} Kg7 {[%emt 0:00:00]} 46. Rh3 {[%emt 0:00:05]} f5 {[%emt 0:00:10]} 47. Rh7+ {[%emt 0:00:02]} Kf6 {[%emt 0:00:01]} 48. R7h6+ {[%emt 0:00:02]} Ke5 {[%emt 0:00:01]} 49. Kb3 {[%emt 0:00:01]} Kf4 {[%emt 0:00:03]} 50. R6h4+ {[%emt 0:00:01]} Ke3 {[%emt 0:00:00]} 51. f4+ {[%emt 0:00:03]} Ke4 {[%emt 0:00:02]} 52. Kc4 {[%emt 0:00:03]} Rxf4 {[%emt 0:00:06]} 53. Rh8 {[%emt 0:00:06]} Rf2 {[%emt 0:00:03]} 54. Re8+ {[%emt 0:00:02]} Kf4 {[%emt 0:00:01]} 55. Reh8 {[%emt 0:00:01]} Rxb2 {[%emt 0:00:02]} 56. R8h4+ {[%emt 0:00:01]} Kg5 {[%emt 0:00:01]} 57. Rh5+ {[%emt 0:00:00]} Kf6 {[%emt 0:00:01]} 58. Kd5 {[%emt 0:00:01]} Rd1+ {[%emt 0:00:03]} 59. Kc6 h1=Q+ {[%emt 0:00:05]} 60. Rxh1 {[%emt 0:00:01]} Rxh1 {[%emt 0:00:01]} 61. Rxh1 {[%emt 0:00:01]} Rb3 {[%emt 0:00:02]} 62. Rh3 {[%emt 0:00:01]} Ke5 {[%emt 0:00:02]} 63. Rd3 {[%emt 0:00:03]} f4 {[%emt 0:00:02]} 64. Rd8 {[%emt 0:00:01]} f3 {[%emt 0:00:01]} 65. Rf8 {[%emt 0:00:01]} Ke4 {[%emt 0:00:01]} 66. Re8+ {[%emt 0:00:00] Ke3 [%clk 0:01:04] Rf8 [%clk 0:00:26] Ke2 [%clk 0:01:05] Re8+ [%clk 0:00:27] Kf1 [%clk 0:01:06] Rf8 [%clk 0:00:28] f2 c4 [%clk 0:00:29] Rb2 [%clk 0:01:05] Kb7 [%clk 0:00:28] Ke1 [%clk 0:01:06] Re8+ [%clk 0:00:29] Re2 [%clk 0:01:07] Rf8 [%clk 0:00:30] Re7+ [%clk 0:01:07] Kxb6 [%clk 0:00:31] f1=Q [%clk 0:01:07] Rxf1+ [%clk 0:00:32] Kxf1 [%clk 0:01:08] c5 [%clk 0:00:31] Ke2 [%clk 0:01:09] c6 [%clk 0:00:33]} Kd3 {[%emt 0:00:00] Kxa5 [%clk 0:00:32] Kc4 [%clk 0:01:10] Kb6 [%clk 0:00:33] Kb4 [%clk 0:01:09] a5 [%clk 0:00:34] Rg7 [%clk 0:01:07] a6 [%clk 0:00:36] Kc4 [%clk 0:01:05] a7 [%clk 0:00:36]} 67. Rg8 {[%emt 0:00:00] Kb7 [%clk 0:00:37] Kc5 [%clk 0:01:05] c7 [%clk 0:00:38] Ra8 [%clk 0:01:04] Kxa8 [%clk 0:00:38] Kc6 [%clk 0:01:05] Kb8 [%clk 0:00:39] Kd7 [%clk 0:01:06] c8=Q+} 1-0

[Event "GER-chW Blitz 2019"]
[Site "Magdeburg"]
[Date "2019.05.25"]
[Round "15.3"]
[White "Lubbe, Melanie"]
[Black "Rath, Alina"]
[Result "0-1"]
[ECO "D00"]
[WhiteElo "2278"]
[BlackElo "2042"]
[Annotator "NA"]
[PlyCount "132"]
[EventDate "2019.05.25"]
[EventType "tourn"]
[EventCountry "GER"]
[SourceTitle "playchess.com"]
[Source "ChessBase"]
[SourceQuality "1"]
[TimeControl "180+2"]

1. d4 {[%emt 0:00:00]} d5 {[%emt 0:00:00]} 2. Nc3 {[%emt 0:00:00]} e6 {[%emt 0:00:00]} 3. Bf4 {[%emt 0:00:06]} c5 {[%emt 0:00:04]} 4. e3 {[%emt 0:00:03]} a6 {[%emt 0:00:02]} 5. Nf3 {[%emt 0:00:15]} Nc6 {[%emt 0:00:01]} 6. h3 {[%emt 0:00:05]} Nf6 {[%emt 0:00:01]} 7. Be2 {[%emt 0:00:03]} Bd6 {[%emt 0:00:01]} 8. Ne5 {[%emt 0:00:06]} Qc7 {[%emt 0:00:04]} 9. Nxc6 {[%emt 0:00:22]} Bxf4 {[%emt 0:00:24]} 10. exf4 {[%emt 0:00:02]} bxc6 {[%emt 0:00:11]} 11. Qd2 {[%emt 0:00:17]} cxd4 {[%emt 0:00:02]} 12. Qxd4 {[%emt 0:00:06]} c5 {[%emt 0:00:03]} 13. Qe5 {[%emt 0:00:06]} Qxe5 {[%emt 0:00:12]} 14. fxe5 {[%emt 0:00:01]} Nd7 {[%emt 0:00:01]} 15. f4 {[%emt 0:00:01]} O-O {[%emt 0:00:01]} 16. Na4 {[%emt 0:00:19]} Bb7 {[%emt 0:00:09]} 17. O-O {[%emt 0:00:04]} Rac8 {[%emt 0:00:06]} 18. c4 {[%emt 0:00:02]} Bc6 {[%emt 0:00:18]} 19. Nc3 {[%emt 0:00:10]} d4 {[%emt 0:00:04]} 20. Nd1 {[%emt 0:00:02]} Rfd8 {[%emt 0:00:04]} 21. Nf2 {[%emt 0:00:07]} Nb6 {[%emt 0:00:06]} 22. b3 {[%emt 0:00:03]} a5 {[%emt 0:00:05]} 23. Nd3 {[%emt 0:00:11]} Be4 {[%emt 0:00:06]} 24. Rad1 {[%emt 0:00:07]} Rc7 {[%emt 0:00:11]} 25. Bf3 {[%emt 0:00:01]} Bxd3 {[%emt 0:00:09]} 26. Rxd3 {[%emt 0:00:01]} Ra7 {[%emt 0:00:01]} 27. Be4 {[%emt 0:00:08]} g6 {[%emt 0:00:02]} 28. g4 {[%emt 0:00:01]} Kg7 {[%emt 0:00:02]} 29. f5 {[%emt 0:00:03]} exf5 {[%emt 0:00:02]} 30. gxf5 {[%emt 0:00:00]} Re8 {[%emt 0:00:06]} 31. fxg6 {[%emt 0:00:22]} fxg6 {[%emt 0:00:10]} 32. Rf6 {[%emt 0:00:03]} Nd7 {[%emt 0:00:11]} 33. Rd6 {[%emt 0:00:12]} Nxe5 {[%emt 0:00:07]} 34. Rd1 {[%emt 0:00:03]} Nf7 {[%emt 0:00:11]} 35. Rc6 {[%emt 0:00:24]} Rxe4 {[%emt 0:00:03]} 36. Rxc5 {[%emt 0:00:01]} Rf4 {[%emt 0:00:04]} 37. Rd5 {[%emt 0:00:03]} Nh6 {[%emt 0:00:09]} 38. c5 {[%emt 0:00:08]} Nf5 {[%emt 0:00:03]} 39. c6 {[%emt 0:00:01]} Kf6 {[%emt 0:00:18]} 40. Rc5 {[%emt 0:00:03]} Rc7 {[%emt 0:00:03]} 41. Rd2 {[%emt 0:00:04]} Ne7 {[%emt 0:00:07]} 42. Rdc2 {[%emt 0:00:04]} Rf5 {[%emt 0:00:03]} 43. R5c4 {[%emt 0:00:01]} d3 {[%emt 0:00:01]} 44. Rd2 {[%emt 0:00:01]} Rxc6 {[%emt 0:00:02]} 45. Rxd3 {[%emt 0:00:02]} Rxc4 46. bxc4 {[%emt 0:00:00]} Rc5 {[%emt 0:00:05]} 47. Rd4 {[%emt 0:00:01]} Nf5 {[%emt 0:00:01]} 48. Rd5 {[%emt 0:00:02]} Rxd5 {[%emt 0:00:01]} 49. cxd5 {[%emt 0:00:01]} Ke5 {[%emt 0:00:01]} 50. Kf2 {[%emt 0:00:01]} Kxd5 51. Kf3 {[%emt 0:00:00]} Ke5 {[%emt 0:00:01]} 52. Kg4 {[%emt 0:00:01]} Kf6 {[%emt 0:00:01]} 53. Kf4 {[%emt 0:00:01]} Nd6 {[%emt 0:00:01]} 54. Kg4 {[%emt 0:00:02]} h6 55. Kf4 g5+ {[%emt 0:00:03]} 56. Kg4 {[%emt 0:00:01]} Kg6 {[%emt 0:00:01]} 57. Kf3 {[%emt 0:00:01]} Kf5 {[%emt 0:00:01]} 58. Kg3 {[%emt 0:00:01]} h5 {[%emt 0:00:00]} 59. Kf3 {[%emt 0:00:01]} g4+ {[%emt 0:00:01]} 60. hxg4+ {[%emt 0:00:00]} hxg4+ {[%emt 0:00:01]} 61. Kf2 {[%emt 0:00:01]} Kf4 62. Kg2 g3 {[%emt 0:00:01]} 63. Kg1 {[%emt 0:00:01]} Kf3 {[%emt 0:00:01]} 64. Kf1 {[%emt 0:00:01]} Ne4 {[%emt 0:00:09]} 65. a4 {[%emt 0:00:01]} Nc3 {[%emt 0:00:04]} 66. Kg1 {[%emt 0:00:01]} Nxa4 {[%emt 0:00:01]} 0-1

[Event "GER-chW Blitz 2019"]
[Site "Magdeburg"]
[Date "2019.05.25"]
[Round "15.4"]
[White "Ries, Jutta"]
[Black "Birkholz, Olga"]
[Result "1/2-1/2"]
[ECO "A02"]
[WhiteElo "2017"]
[BlackElo "2031"]
[Annotator "NA"]
[PlyCount "78"]
[EventDate "2019.05.25"]
[EventType "tourn"]
[EventCountry "GER"]
[SourceTitle "playchess.com"]
[Source "ChessBase"]
[SourceQuality "1"]
[TimeControl "180+2"]

1. f4 {[%emt 0:00:00]} c5 {[%emt 0:00:00]} 2. Nf3 {[%emt 0:00:01]} Nc6 {[%emt 0:00:01]} 3. b3 {[%emt 0:00:01]} g6 {[%emt 0:00:02]} 4. Bb2 {[%emt 0:00:01]} Nf6 {[%emt 0:00:01]} 5. e3 {[%emt 0:00:02]} Bg7 {[%emt 0:00:01]} 6. Bb5 {[%emt 0:00:04]} Qb6 {[%emt 0:00:06]} 7. Qe2 {[%emt 0:00:17]} a6 {[%emt 0:00:01]} 8. Bxc6 {[%emt 0:00:02]} Qxc6 {[%emt 0:00:01]} 9. Nc3 {[%emt 0:00:09]} d6 {[%emt 0:00:02]} 10. O-O {[%emt 0:00:02]} O-O {[%emt 0:00:02]} 11. d3 {[%emt 0:00:09]} b5 {[%emt 0:00:02]} 12. e4 {[%emt 0:00:02]} Bb7 {[%emt 0:00:15]} 13. Rae1 {[%emt 0:00:08]} Rfe8 {[%emt 0:00:09]} 14. Nd1 {[%emt 0:00:08]} c4 {[%emt 0:00:11]} 15. Kh1 {[%emt 0:00:25]} Rac8 {[%emt 0:00:01]} 16. Nd4 {[%emt 0:00:03]} Qd7 {[%emt 0:00:09]} 17. Ne3 {[%emt 0:00:09]} e5 {[%emt 0:00:17]} 18. fxe5 {[%emt 0:00:16]} dxe5 {[%emt 0:00:01]} 19. Nf3 {[%emt 0:00:01]} cxd3 {[%emt 0:00:10]} 20. cxd3 {[%emt 0:00:03]} Nh5 {[%emt 0:00:12]} 21. Ng5 {[%emt 0:00:38]} Nf4 {[%emt 0:00:06]} 22. Qf3 {[%emt 0:00:14]} Qe7 {[%emt 0:00:25]} 23. Qg4 {[%emt 0:00:19]} Nxd3 {[%emt 0:00:04]} 24. Rxf7 {[%emt 0:00:08]} Qxf7 {[%emt 0:00:08]} 25. Nxf7 {[%emt 0:00:01]} Nxe1 {[%emt 0:00:02]} 26. Nd6 {[%emt 0:00:04]} Rf8 {[%emt 0:00:17]} 27. Nxc8 {[%emt 0:00:14]} Bxc8 {[%emt 0:00:02]} 28. Qe2 {[%emt 0:00:01]} Bh6 {[%emt 0:00:07]} 29. Nd5 {[%emt 0:00:07]} Nc2 {[%emt 0:00:07]} 30. h3 {[%emt 0:00:03]} Nd4 {[%emt 0:00:04]} 31. Bxd4 {[%emt 0:00:02]} exd4 {[%emt 0:00:01]} 32. Ne7+ {[%emt 0:00:01]} Kf7 {[%emt 0:00:05]} 33. Nxc8 {[%emt 0:00:01]} Rxc8 {[%emt 0:00:01]} 34. Qf2+ {[%emt 0:00:01]} Ke6 {[%emt 0:00:06]} 35. Qxd4 {[%emt 0:00:01]} Rc1+ {[%emt 0:00:03]} 36. Kh2 {[%emt 0:00:01]} Bf4+ {[%emt 0:00:00]} 37. g3 {[%emt 0:00:00]} Rc2+ {[%emt 0:00:09]} 38. Kg1 {[%emt 0:00:01]} Bxg3 {[%emt 0:00:31]} 39. Qd5+ {[%emt 0:00:00]} Kf6 {[%emt 0:00:06]} 1/2-1/2

[Event "GER-chW Blitz 2019"]
[Site "Magdeburg"]
[Date "2019.05.25"]
[Round "15.5"]
[White "Kushka, Alena"]
[Black "Hofmann, Karina"]
[Result "1-0"]
[ECO "A40"]
[WhiteElo "2148"]
[BlackElo "1700"]
[Annotator "NA"]
[PlyCount "71"]
[EventDate "2019.05.25"]
[EventType "tourn"]
[EventCountry "GER"]
[SourceTitle "playchess.com"]
[Source "ChessBase"]
[SourceQuality "1"]
[TimeControl "180+2"]

1. d4 {[%emt 0:00:00]} b6 {[%emt 0:00:00]} 2. c4 {[%emt 0:00:02]} Bb7 {[%emt 0:00:00]} 3. Nc3 {[%emt 0:00:01]} g6 {[%emt 0:00:01]} 4. e4 {[%emt 0:00:01]} Bg7 {[%emt 0:00:01]} 5. Nf3 {[%emt 0:00:03]} e6 {[%emt 0:00:04]} 6. Be2 {[%emt 0:00:06]} Ne7 {[%emt 0:00:01]} 7. O-O {[%emt 0:00:02]} O-O {[%emt 0:00:04]} 8. Bg5 {[%emt 0:00:04]} f6 {[%emt 0:00:03]} 9. Bh4 {[%emt 0:00:03]} c5 {[%emt 0:00:04]} 10. d5 {[%emt 0:00:01]} e5 {[%emt 0:00:11]} 11. d6 {[%emt 0:00:14]} Nec6 {[%emt 0:00:01]} 12. Nd5 {[%emt 0:00:04]} Na6 {[%emt 0:00:11]} 13. a3 {[%emt 0:00:15]} Nd4 {[%emt 0:00:02]} 14. Nxd4 {[%emt 0:00:06]} Bxd5 {[%emt 0:00:08]} 15. cxd5 {[%emt 0:00:18]} cxd4 {[%emt 0:00:10]} 16. Bxa6 {[%emt 0:00:02]} Qb8 {[%emt 0:00:05]} 17. Rc1 {[%emt 0:00:15]} Qxd6 {[%emt 0:00:03]} 18. Qc2 {[%emt 0:00:10]} Rab8 {[%emt 0:00:11]} 19. Qc7 {[%emt 0:00:03]} Qxc7 {[%emt 0:00:14]} 20. Rxc7 {[%emt 0:00:01]} b5 {[%emt 0:00:06]} 21. Rxa7 {[%emt 0:00:07]} Rb6 {[%emt 0:00:02]} 22. f3 {[%emt 0:00:13]} g5 {[%emt 0:00:01]} 23. Be1 {[%emt 0:00:05]} Rfb8 {[%emt 0:00:05]} 24. Bb4 {[%emt 0:00:06]} Bf8 {[%emt 0:00:03]} 25. Ba5 {[%emt 0:00:17]} Rd6 {[%emt 0:00:07]} 26. Bc7 {[%emt 0:00:03]} Rbb6 {[%emt 0:00:03]} 27. Bxd6 {[%emt 0:00:06]} Bxd6 {[%emt 0:00:01]} 28. Rc1 {[%emt 0:00:04]} Kg7 {[%emt 0:00:03]} 29. Rxd7+ {[%emt 0:00:06]} Kg6 {[%emt 0:00:03]} 30. Bb7 {[%emt 0:00:11]} b4 {[%emt 0:00:05]} 31. a4 {[%emt 0:00:04]} b3 {[%emt 0:00:01]} 32. Kf1 {[%emt 0:00:09]} h6 {[%emt 0:00:02]} 33. Rc6 {[%emt 0:00:04]} Rxc6 {[%emt 0:00:05]} 34. dxc6 {[%emt 0:00:02]} Bb8 {[%emt 0:00:02]} 35. c7 {[%emt 0:00:01]} Bxc7 {[%emt 0:00:01]} 36. Rxc7 1-0

[Event "GER-chW Blitz 2019"]
[Site "Magdeburg"]
[Date "2019.05.25"]
[Round "15.6"]
[White "Schulze, Lara"]
[Black "Siegl, Melina"]
[Result "0-1"]
[ECO "B40"]
[WhiteElo "2160"]
[BlackElo "2029"]
[Annotator "NA"]
[PlyCount "55"]
[EventDate "2019.05.25"]
[EventType "tourn"]
[EventCountry "GER"]
[SourceTitle "playchess.com"]
[Source "ChessBase"]
[SourceQuality "1"]
[TimeControl "180+2"]

1. e4 {[%emt 0:00:00]} c5 {[%emt 0:00:00]} 2. Nf3 {[%emt 0:00:01]} e6 {[%emt 0:00:00]} 3. d4 {[%emt 0:00:01]} cxd4 {[%emt 0:00:02]} 4. Nxd4 {[%emt 0:00:00]} Nf6 {[%emt 0:00:01]} 5. Nc3 {[%emt 0:00:13]} a6 {[%emt 0:00:02]} 6. e5 {[%emt 0:00:12]} Ng8 {[%emt 0:00:02]} 7. Be2 {[%emt 0:00:22]} d6 {[%emt 0:00:03]} 8. Nf3 {[%emt 0:00:18]} Nc6 {[%emt 0:00:07]} 9. Bg5 {[%emt 0:00:17]} Qc7 {[%emt 0:00:05]} 10. exd6 {[%emt 0:00:08]} Bxd6 {[%emt 0:00:02]} 11. O-O {[%emt 0:00:09]} h6 {[%emt 0:00:03]} 12. Bh4 {[%emt 0:00:09]} Nge7 {[%emt 0:00:06]} 13. Ne4 {[%emt 0:00:05]} Bf4 {[%emt 0:00:12]} 14. g3 {[%emt 0:00:17]} Ng6 {[%emt 0:00:45]} 15. gxf4 {[%emt 0:01:00]} Nxh4 {[%emt 0:00:02]} 16. Nd6+ {[%emt 0:00:08]} Ke7 {[%emt 0:00:08]} 17. Nxc8+ {[%emt 0:00:01]} Raxc8 {[%emt 0:00:01]} 18. Nxh4 {[%emt 0:00:00]} Qxf4 {[%emt 0:00:03]} 19. Ng2 {[%emt 0:00:01]} Qg5 {[%emt 0:00:07]} 20. f4 {[%emt 0:00:01]} Qc5+ {[%emt 0:00:05]} 21. Kh1 {[%emt 0:00:01]} Nd4 {[%emt 0:00:02]} 22. c3 {[%emt 0:00:03]} Nf5 {[%emt 0:00:14]} 23. Bf3 {[%emt 0:00:01]} Rc7 {[%emt 0:00:07]} 24. Qe2 {[%emt 0:00:02]} g5 {[%emt 0:00:08]} 25. Rad1 {[%emt 0:00:06]} Rg8 {[%emt 0:00:32]} 26. Be4 {[%emt 0:00:09]} Nd6 {[%emt 0:00:04]} 27. Bf3 {[%emt 0:00:06]} g4 {[%emt 0:00:14]} 28. Bxg4 0-1

[Event "GER-chW Blitz 2019"]
[Site "Magdeburg"]
[Date "2019.05.25"]
[Round "15.7"]
[White "Braje, Monika"]
[Black "Muetsch, Annmarie"]
[Result "0-1"]
[ECO "B21"]
[WhiteElo "1781"]
[BlackElo "2266"]
[Annotator "NA"]
[PlyCount "97"]
[EventDate "2019.05.25"]
[EventType "tourn"]
[EventCountry "GER"]
[SourceTitle "playchess.com"]
[Source "ChessBase"]
[SourceQuality "1"]
[TimeControl "180+2"]

1. e4 {[%emt 0:00:00]} c5 {[%emt 0:00:00]} 2. d4 cxd4 {[%emt 0:00:01]} 3. c3 {[%emt 0:00:01]} d3 {[%emt 0:00:01]} 4. Bxd3 {[%emt 0:00:01]} Nc6 {[%emt 0:00:01]} 5. Nf3 {[%emt 0:00:02]} g6 {[%emt 0:00:01]} 6. O-O {[%emt 0:00:02]} Bg7 {[%emt 0:00:00]} 7. Bf4 {[%emt 0:00:06]} d6 {[%emt 0:00:01]} 8. h3 {[%emt 0:00:01]} Nf6 {[%emt 0:00:02]} 9. Qe2 {[%emt 0:00:02]} O-O {[%emt 0:00:02]} 10. Rd1 {[%emt 0:00:01]} Nd7 {[%emt 0:00:18]} 11. Na3 {[%emt 0:00:09]} a6 {[%emt 0:00:21]} 12. Rac1 {[%emt 0:00:02]} b5 {[%emt 0:00:04]} 13. Bb1 {[%emt 0:00:06]} Qb6 {[%emt 0:00:07]} 14. Be3 {[%emt 0:00:04]} Qc7 {[%emt 0:00:03]} 15. Nc2 {[%emt 0:00:06]} Nde5 {[%emt 0:00:09]} 16. Nfd4 {[%emt 0:00:05]} Nc4 {[%emt 0:00:06]} 17. b3 {[%emt 0:00:17]} Nxe3 {[%emt 0:00:04]} 18. Qxe3 {[%emt 0:00:04]} Bb7 {[%emt 0:00:06]} 19. Ne1 {[%emt 0:00:03]} Rac8 {[%emt 0:00:10]} 20. Ndf3 {[%emt 0:00:05]} Ne5 {[%emt 0:00:05]} 21. Nd4 {[%emt 0:00:21]} Rfe8 {[%emt 0:00:24]} 22. Kh1 {[%emt 0:00:11]} Qb6 {[%emt 0:00:09]} 23. Qg3 {[%emt 0:00:18]} a5 {[%emt 0:00:09]} 24. f4 {[%emt 0:00:09]} Nc6 {[%emt 0:00:02]} 25. Ndf3 {[%emt 0:00:05]} b4 {[%emt 0:00:04]} 26. c4 {[%emt 0:00:03]} Nd4 {[%emt 0:00:08]} 27. Nxd4 {[%emt 0:00:10]} Bxd4 {[%emt 0:00:01]} 28. e5 {[%emt 0:00:05]} Bf2 {[%emt 0:00:20]} 29. Qg4 {[%emt 0:00:06]} Be3 {[%emt 0:00:27]} 30. exd6 {[%emt 0:00:17]} exd6 {[%emt 0:00:06]} 31. Rc2 {[%emt 0:00:03]} f5 {[%emt 0:00:11]} 32. Qg3 {[%emt 0:00:12]} Bc5 {[%emt 0:00:08]} 33. Rcd2 {[%emt 0:00:05]} Re7 {[%emt 0:00:05]} 34. Bxf5 {[%emt 0:00:02]} Rf8 {[%emt 0:00:03]} 35. Bc2 {[%emt 0:00:03]} Ref7 {[%emt 0:00:05]} 36. f5 {[%emt 0:00:03]} Rg7 {[%emt 0:00:03]} 37. Qf4 {[%emt 0:00:20]} gxf5 {[%emt 0:00:02]} 38. Nf3 {[%emt 0:00:04]} Bxf3 {[%emt 0:00:02]} 39. Qxf3 {[%emt 0:00:01]} f4 {[%emt 0:00:01]} 40. Qd5+ {[%emt 0:00:04]} Kh8 {[%emt 0:00:01]} 41. Rf1 {[%emt 0:00:03]} Qc7 {[%emt 0:00:03]} 42. Re2 {[%emt 0:00:04]} Qa7 {[%emt 0:00:03]} 43. Re4 {[%emt 0:00:03]} Qb8 {[%emt 0:00:03]} 44. Rexf4 {[%emt 0:00:05]} Rfg8 {[%emt 0:00:03]} 45. Rh4 {[%emt 0:00:06]} Qd8 {[%emt 0:00:00]} 46. Rh5 {[%emt 0:00:02]} Qe7 {[%emt 0:00:02]} 47. Qd3 {[%emt 0:00:03]} Qd7 {[%emt 0:00:03]} 48. Qe2 {[%emt 0:00:06]} Re8 {[%emt 0:00:01]} 49. Qf3 0-1

[Event "GER-chW Blitz 2019"]
[Site "Magdeburg"]
[Date "2019.05.25"]
[Round "15.8"]
[White "Mader, Lena"]
[Black "Michna, Marta"]
[Result "1/2-1/2"]
[ECO "A16"]
[WhiteElo "1839"]
[BlackElo "2355"]
[Annotator "NA"]
[PlyCount "53"]
[EventDate "2019.05.25"]
[EventType "tourn"]
[EventCountry "GER"]
[SourceTitle "playchess.com"]
[Source "ChessBase"]
[SourceQuality "1"]
[TimeControl "180+2"]

1. c4 {[%emt 0:00:00]} Nf6 {[%emt 0:00:00]} 2. Nc3 {[%emt 0:00:00]} d6 {[%emt 0:00:00]} 3. d4 {[%emt 0:00:12]} Nbd7 {[%emt 0:00:00]} 4. g3 {[%emt 0:00:04]} e5 {[%emt 0:00:01]} 5. dxe5 {[%emt 0:00:03]} dxe5 {[%emt 0:00:02]} 6. Bg2 {[%emt 0:00:02]} c6 {[%emt 0:00:01]} 7. e3 {[%emt 0:00:16]} Qc7 {[%emt 0:00:06]} 8. Nf3 {[%emt 0:00:08]} Be7 {[%emt 0:00:09]} 9. O-O {[%emt 0:00:02]} O-O {[%emt 0:00:01]} 10. Qc2 {[%emt 0:00:20]} Re8 {[%emt 0:00:10]} 11. a3 {[%emt 0:00:06]} a5 {[%emt 0:00:01]} 12. b3 {[%emt 0:00:07]} Bf8 {[%emt 0:00:10]} 13. Bb2 {[%emt 0:00:02]} Nc5 {[%emt 0:00:37]} 14. b4 {[%emt 0:00:36]} axb4 {[%emt 0:00:47]} 15. axb4 {[%emt 0:00:01]} Rxa1 {[%emt 0:00:01]} 16. Rxa1 {[%emt 0:00:01]} Na6 {[%emt 0:00:04]} 17. b5 {[%emt 0:00:24]} Nb4 {[%emt 0:00:11]} 18. Qe2 {[%emt 0:00:21]} Bf5 {[%emt 0:00:25]} 19. Ne1 {[%emt 0:00:10]} e4 {[%emt 0:00:06]} 20. Ra7 {[%emt 0:00:11]} Qb6 {[%emt 0:00:03]} 21. Ra1 {[%emt 0:00:05]} Bg4 {[%emt 0:00:12]} 22. Qf1 {[%emt 0:00:08]} h5 {[%emt 0:00:11]} 23. h3 {[%emt 0:00:01]} Bf5 {[%emt 0:00:02]} 24. bxc6 {[%emt 0:00:05]} bxc6 {[%emt 0:00:05]} 25. Ba3 {[%emt 0:00:07]} Nd3 {[%emt 0:00:05]} 26. Bxf8 {[%emt 0:00:02]} Kxf8 {[%emt 0:00:03]} 27. Nxe4 1/2-1/2

[Event "GER-chW Blitz 2019"]
[Site "Magdeburg"]
[Date "2019.05.25"]
[Round "15.9"]
[White "Zimmer, Elke"]
[Black "Osmanodja, Filiz"]
[Result "0-1"]
[ECO "B24"]
[WhiteElo "1926"]
[BlackElo "2260"]
[Annotator "NA"]
[PlyCount "82"]
[EventDate "2019.05.25"]
[EventType "tourn"]
[EventCountry "GER"]
[SourceTitle "playchess.com"]
[Source "ChessBase"]
[SourceQuality "1"]
[TimeControl "180+2"]

1. e4 {[%emt 0:00:00]} c5 {[%emt 0:00:00]} 2. Nc3 {[%emt 0:00:00]} Nc6 3. g3 g6 {[%emt 0:00:00]} 4. Bg2 {[%emt 0:00:01]} Bg7 {[%emt 0:00:01]} 5. d3 {[%emt 0:00:02]} e6 {[%emt 0:00:01]} 6. Be3 {[%emt 0:00:02]} d6 {[%emt 0:00:01]} 7. Nf3 {[%emt 0:00:02]} Nge7 {[%emt 0:00:01]} 8. O-O {[%emt 0:00:02]} O-O {[%emt 0:00:02]} 9. Qd2 {[%emt 0:00:01]} Nd4 {[%emt 0:00:03]} 10. Bh6 {[%emt 0:00:04]} Nec6 {[%emt 0:00:17]} 11. Bxg7 {[%emt 0:00:04]} Kxg7 {[%emt 0:00:01]} 12. Nd1 {[%emt 0:00:10]} f5 {[%emt 0:00:16]} 13. Ne1 {[%emt 0:00:36]} e5 {[%emt 0:00:12]} 14. c3 {[%emt 0:00:04]} Ne6 {[%emt 0:00:04]} 15. Ne3 {[%emt 0:00:13]} f4 {[%emt 0:00:12]} 16. Nd5 {[%emt 0:00:03]} Ne7 {[%emt 0:00:04]} 17. Nxe7 {[%emt 0:00:31]} Qxe7 {[%emt 0:00:01]} 18. Nf3 {[%emt 0:00:11]} g5 {[%emt 0:00:18]} 19. h3 {[%emt 0:00:04]} h5 {[%emt 0:00:08]} 20. g4 {[%emt 0:00:18]} hxg4 {[%emt 0:00:06]} 21. hxg4 {[%emt 0:00:01]} Rh8 {[%emt 0:00:23]} 22. Nh2 {[%emt 0:00:11]} f3 {[%emt 0:00:24]} 23. Nxf3 {[%emt 0:00:10]} Nf4 {[%emt 0:00:02]} 24. d4 {[%emt 0:00:07]} Bxg4 {[%emt 0:00:08]} 25. dxe5 {[%emt 0:00:07]} dxe5 {[%emt 0:00:28]} 26. Rfd1 {[%emt 0:00:13]} Nxg2 {[%emt 0:00:04]} 27. Kxg2 {[%emt 0:00:01]} Bxf3+ {[%emt 0:00:10]} 28. Kxf3 {[%emt 0:00:02]} Rad8 {[%emt 0:00:06]} 29. Qc1 {[%emt 0:00:18]} Rxd1 {[%emt 0:00:06]} 30. Qxd1 {[%emt 0:00:01]} Qe6 {[%emt 0:00:02]} 31. Qg1 {[%emt 0:00:05]} Rf8+ {[%emt 0:00:05]} 32. Ke2 {[%emt 0:00:02]} Qc4+ {[%emt 0:00:02]} 33. Ke3 {[%emt 0:00:09]} Kg6 {[%emt 0:00:04]} 34. Rd1 {[%emt 0:00:02]} Rf4 {[%emt 0:00:04]} 35. Rd6+ {[%emt 0:00:02]} Kf7 {[%emt 0:00:00]} 36. Qg2 {[%emt 0:00:05]} g4 {[%emt 0:00:02]} 37. Rd7+ {[%emt 0:00:03]} Ke6 {[%emt 0:00:01]} 38. Rxb7 {[%emt 0:00:01]} Rf3+ {[%emt 0:00:02]} 39. Kd2 {[%emt 0:00:01]} Qxe4 {[%emt 0:00:09]} 40. Rg7 {[%emt 0:00:06]} Rd3+ {[%emt 0:00:01]} 41. Kc2 {[%emt 0:00:04]} Qxg2 {[%emt 0:00:03]} 0-1